bitfinex/quotes_SOLUSD_20230120
["timestamp","ask_amount","ask_price","bid_price","bid_amount"]
[1674244843411,32.15,23.336,23.301,26.18]
[1674244843625,32.15,23.336,23.307,20.0]
[1674244844023,10.96,23.335,23.307,20.0]
[1674244844236,32.15,23.334,23.307,20.0]
[1674244844444,17.96,23.333,23.307,20.0]
[1674244844654,32.15,23.332,23.307,20.0]
[1674244844870,17.96,23.331,23.307,20.0]
[1674244845093,42.15,23.33,23.301,10.0]
[1674244845301,37.96,23.329,23.297,10.0]
[1674244845512,32.16,23.328,23.297,10.0]
[1674244845828,37.0,23.327,23.297,10.0]
[1674244846142,42.16,23.326,23.297,10.0]
[1674244846344,17.0,23.325,23.297,10.0]
[1674244846553,33.12,23.324,23.297,10.0]
[1674244846776,17.0,23.323,23.297,10.0]
[1674244846972,32.17,23.322,23.297,10.0]
[1674244847183,17.0,23.321,23.297,10.0]
[1674244847393,10.0,23.32,23.297,10.0]
[1674244847598,17.96,23.319,23.297,10.0]
[1674244847828,32.17,23.318,23.297,10.0]
[1674244848027,17.0,23.317,23.297,10.0]
[1674244848234,32.17,23.319,23.298,20.0]
[1674244848444,10.0,23.32,23.298,20.0]
[1674244848679,32.17,23.319,23.298,20.0]
[1674244848891,55.92576951,23.319,23.291,10.0]
[1674244849070,30.0,23.318,23.29,10.0]
[1674244849409,60.12942951,23.317,23.283,10.0]
[1674244849628,60.12942951,23.317,23.28,25.01]
[1674244849629,50.13,23.317,23.28,25.01]
[1674244849811,32.17,23.317,23.28,25.01]
[1674244850021,32.17,23.317,23.281,65.84014657]
[1674244850246,14.20366,23.316,23.281,33.09929348]
[1674244850562,32.18,23.315,23.281,10.0]
[1674244850762,55.93576951,23.315,23.282,20.0]
[1674244850970,33.75576951,23.314,23.283,10.0]
[1674244851182,32.18,23.313,23.284,20.0]
[1674244851394,32.18,23.313,23.29,24.81]
[1674244851596,120.1762,23.32,23.291,20.0]
[1674244851816,110.1762,23.32,23.292,31.72]
[1674244852026,10.0,23.319,23.293,27.0]
[1674244852233,10.0,23.319,23.294,20.0]
[1674244852561,10.0,23.319,23.294,43.09929348]
[1674244852748,10.0,23.319,23.295,23.09929348]
[1674244852966,10.0,23.319,23.297,10.0]
[1674244853182,110.1762,23.32,23.298,20.0]
[1674244853394,110.1762,23.32,23.298,43.09929348]
[1674244853601,110.1762,23.32,23.299,23.09929348]
[1674244853928,10.0,23.319,23.3,10.0]
[1674244854341,10.0,23.322,23.301,23.09929348]
[1674244854878,10.0,23.322,23.302,10.0]
[1674244855398,9.5,23.322,23.303,23.09929348]
[1674244856128,0.96,23.321,23.303,23.09929348]
[1674244856772,17.96,23.321,23.298,20.0]
[1674244857073,42.17,23.32,23.298,23.09929348]
[1674244857269,17.0,23.319,23.284,29.19]
[1674244857604,17.0,23.319,23.29,23.09929348]
[1674244857605,10.0,23.317,23.29,23.09929348]
[1674244857826,10.0,23.315,23.285,10.0]
[1674244858052,50.14,23.314,23.286,23.09929348]
[1674244858353,10.0,23.313,23.286,23.09929348]
[1674244858539,50.14,23.312,23.286,23.09929348]
[1674244858979,10.0,23.311,23.286,23.09929348]
[1674244859176,49.18,23.31,23.286,23.09929348]
[1674244859386,10.0,23.309,23.286,23.09929348]
[1674244859588,17.96,23.308,23.282,10.0]
[1674244859803,10.0,23.307,23.282,10.0]
[1674244860038,33.15,23.306,23.283,23.09929348]
[1674244860347,0.96,23.306,23.283,23.09929348]
[1674244860745,32.18,23.31,23.284,20.0]
[1674244860961,42.17,23.319,23.29,25.01]
[1674244861183,32.18,23.312,23.285,72.25859324]
[1674244861382,32.18,23.312,23.286,20.0]
[1674244861590,10.0,23.311,23.286,43.09929348]
[1674244861812,32.18,23.31,23.286,43.09929348]
[1674244862141,27.96,23.309,23.286,43.09929348]
[1674244862324,32.18,23.308,23.286,43.09929348]
[1674244862534,17.0,23.307,23.286,20.0]
[1674244862744,10.0,23.311,23.287,10.0]
[1674244862973,10.0,23.311,23.288,20.0]
[1674244863178,10.0,23.311,23.289,10.0]
[1674244863398,32.18,23.314,23.289,10.0]
[1674244863596,42.18,23.315,23.289,53.59620861]
[1674244863798,42.16,23.323,23.29,116.85263309]
[1674244864122,42.15,23.33,23.3,24.99]
[1674244864336,10.0,23.33,23.301,61.36]
[1674244864549,10.0,23.33,23.301,153.2488417]
[1674244864755,10.0,23.33,23.302,91.8888417]
[1674244864962,10.0,23.33,23.303,71.46]
[1674244865167,10.0,23.33,23.304,10.0]
[1674244865501,10.0,23.337,23.31,25.01]
[1674244865701,9.5,23.337,23.311,43.08]
[1674244865909,10.0,23.341,23.312,27.96]
[1674244866112,10.0,23.341,23.313,44.01]
[1674244866323,10.0,23.341,23.314,17.0]
[1674244866536,10.0,23.341,23.315,20.0]
[1674244866749,10.0,23.341,23.313,44.01]
[1674244866967,32.14,23.34,23.313,20.0]
[1674244867289,10.0,23.339,23.307,58.29263309]
[1674244867477,10.0,23.339,23.308,42.81]
[1674244867691,10.0,23.337,23.308,42.81]
[1674244867908,32.15,23.336,23.308,20.0]
[1674244868114,32.15,23.336,23.305,20.0]
[1674244868336,10.0,23.335,23.306,21.14]
[1674244868550,17.96,23.334,23.305,21.97]
[1674244868865,10.0,23.332,23.302,31.97]
[1674244869173,50.11,23.331,23.292,133.2934]
[1674244869385,50.11,23.331,23.3,25.01]
[1674244869781,10.0,23.33,23.301,10.0]
[1674244870000,50.12,23.329,23.301,10.0]
[1674244870227,20.0,23.328,23.3,25.01]
[1674244870434,20.0,23.328,23.294,22.49]
[1674244870435,49.16,23.327,23.294,22.49]
[1674244870656,50.12,23.327,23.29,47.49]
[1674244870951,10.0,23.326,23.291,53.59620861]
[1674244871182,49.16,23.325,23.292,22.48]
[1674244871394,49.16,23.325,23.293,10.0]
[1674244871592,0.96,23.324,23.294,21.24]
[1674244871812,10.96,23.324,23.295,10.0]
[1674244872018,17.0,23.323,23.295,53.59620861]
[1674244872231,10.0,23.324,23.3,24.99]
[1674244872447,10.0,23.324,23.301,17.0]
[1674244872648,10.0,23.324,23.297,10.0]
[1674244872848,10.0,23.324,23.298,39.3]
[1674244873053,10.0,23.327,23.299,0.96]
[1674244873270,10.0,23.327,23.3,47.78]
[1674244873476,10.0,23.327,23.301,17.96]
[1674244873691,10.0,23.327,23.303,10.0]
[1674244873909,10.0,23.33,23.304,17.0]
[1674244874128,42.15,23.335,23.305,44.16]
[1674244874329,32.14,23.34,23.31,24.87]
[1674244874529,115.8411,23.348,23.311,62.76]
[1674244874735,10.0,23.346,23.312,10.0]
[1674244874951,10.0,23.344,23.314,10.0]
[1674244875163,10.0,23.344,23.32,24.95]
[1674244875368,228.9276,23.353,23.321,45.85]
[1674244875596,228.9276,23.353,23.321,44.15879776]
[1674244875800,10.0,23.352,23.321,44.15879776]
[1674244876007,42.12,23.352,23.322,54.55620861]
[1674244876214,228.9276,23.353,23.323,3.065]
[1674244876446,228.9276,23.353,23.324,0.96]
[1674244876755,108.9276,23.353,23.325,3.027]
[1674244876963,10.0,23.352,23.33,24.87]
[1674244877166,10.0,23.352,23.331,20.0]
[1674244877383,32.11,23.36,23.331,64.15879776]
[1674244877592,32.11,23.36,23.331,72.29279776]
[1674244877808,32.11,23.36,23.332,10.0]
[1674244878006,162.11,23.361,23.333,17.0]
[1674244878332,42.11,23.361,23.334,20.96]
[1674244878533,10.0,23.361,23.335,17.0]
[1674244878853,10.0,23.361,23.336,30.0]
[1674244879067,10.0,23.361,23.337,17.0]
[1674244879468,120.0,23.362,23.34,25.01]
[1674244879677,120.0,23.369,23.341,20.0]
[1674244879889,32.1,23.368,23.342,10.0]
[1674244880117,120.0,23.369,23.343,37.0]
[1674244880315,120.0,23.369,23.343,20.0]
[1674244880526,120.0,23.369,23.344,17.0]
[1674244880741,10.0,23.368,23.345,30.0]
[1674244881151,10.0,23.368,23.346,10.0]
[1674244881359,120.0,23.369,23.346,10.0]
[1674244881794,32.1,23.37,23.35,25.01]
[1674244882006,32.09,23.376,23.351,20.0]
[1674244882215,120.0,23.377,23.35,25.01]
[1674244882428,120.0,23.377,23.346,10.0]
[1674244882624,32.09,23.374,23.347,20.0]
[1674244882830,42.09,23.374,23.348,10.0]
[1674244883170,20.0,23.373,23.33,25.01]
[1674244883360,32.1,23.372,23.336,9.0]
[1674244883576,17.0,23.371,23.336,9.0]
[1674244883891,32.1,23.37,23.34,24.81]
[1674244884092,120.0,23.377,23.35,25.01]
[1674244884093,32.1,23.373,23.35,25.01]
[1674244884306,32.09,23.374,23.35,25.01]
[1674244884517,32.09,23.376,23.351,20.0]
[1674244884726,32.09,23.376,23.352,10.0]
[1674244885039,120.0,23.377,23.353,20.96]
[1674244885249,120.0,23.377,23.36,24.81]
[1674244885457,152.08,23.385,23.354,20.95]
[1674244885785,152.08,23.385,23.355,30.0]
[1674244886001,152.08,23.385,23.356,0.96]
[1674244886203,152.08,23.385,23.356,17.96]
[1674244886409,152.08,23.385,23.357,20.0]
[1674244886619,152.08,23.385,23.359,10.0]
[1674244887170,152.08,23.385,23.355,10.0]
[1674244887365,152.08,23.385,23.341,140.3472]
[1674244887688,152.08,23.385,23.352,14.18773]
[1674244887993,152.08,23.385,23.36,25.01]
[1674244888209,120.0,23.385,23.36,25.01]
[1674244888417,32.08,23.384,23.36,25.01]
[1674244888731,32.08,23.384,23.361,47.0]
[1674244888973,120.0,23.385,23.362,0.96]
[1674244889136,120.0,23.385,23.362,42.63266568]
[1674244889340,120.0,23.385,23.363,17.0]
[1674244889674,120.0,23.387,23.37,25.01]
[1674244889885,120.0,23.387,23.371,17.96]
[1674244890206,120.0,23.392,23.372,20.0]
[1674244890617,120.0,23.393,23.373,10.0]
[1674244890828,120.0,23.393,23.38,25.01]
[1674244891150,32.07,23.392,23.36,25.01]
[1674244891364,32.07,23.392,23.36,24.87]
[1674244891550,10.0,23.391,23.36,24.87]
[1674244891768,32.07,23.39,23.36,24.87]
[1674244891996,32.07,23.39,23.36,24.99]
[1674244892193,120.0,23.385,23.36,24.99]
[1674244892405,17.0,23.389,23.36,24.99]
[1674244892406,137.11371,23.393,23.37,25.01]
[1674244892608,137.11371,23.393,23.371,10.0]
[1674244892825,137.11371,23.393,23.372,20.0]
[1674244893039,137.11371,23.393,23.38,25.01]
[1674244893249,137.11371,23.393,23.381,20.0]
[1674244893568,137.11371,23.393,23.382,17.96]
[1674244893894,137.11371,23.393,23.372,32.1]
[1674244894082,137.11371,23.393,23.371,10.0]
[1674244894083,32.07,23.392,23.371,10.0]
[1674244894287,17.11371,23.393,23.371,10.0]
[1674244894514,17.11371,23.393,23.372,33.06]
[1674244894729,17.11371,23.393,23.372,0.96]
[1674244895035,17.11371,23.393,23.371,10.0]
[1674244895250,17.11371,23.393,23.361,14.18612]
[1674244895251,32.07,23.392,23.361,14.18612]
[1674244895574,32.07,23.392,23.345,129.90990169]
[1674244895575,32.07,23.392,23.363,4.18576]
[1674244895769,30.0,23.391,23.363,4.18576]
[1674244896098,33.03,23.39,23.363,4.18576]
[1674244896287,37.0,23.389,23.352,23.09929348]
[1674244896497,33.03,23.388,23.356,4.18702]
[1674244896725,17.0,23.387,23.356,23.09929348]
[1674244896935,17.0,23.387,23.353,10.0]
[1674244896936,32.08,23.386,23.357,23.09929348]
[1674244897252,17.0,23.385,23.358,4.18666]
[1674244897445,10.0,23.388,23.36,24.95]
[1674244897651,32.08,23.387,23.36,24.95]
[1674244897867,32.08,23.387,23.37,24.81]
[1674244898203,10.0,23.391,23.37,24.81]
[1674244898388,10.0,23.391,23.361,10.0]
[1674244898598,32.07,23.39,23.362,20.96]
[1674244898819,32.07,23.39,23.362,20.46]
[1674244899032,17.11371,23.393,23.37,24.95]
[1674244899237,17.11371,23.393,23.371,0.96]
[1674244899451,17.11371,23.393,23.38,24.95]
[1674244899662,17.11371,23.393,23.381,0.96]
[1674244899871,17.11371,23.393,23.381,40.15244296]
[1674244900079,17.11371,23.393,23.381,17.0]
[1674244900292,17.11371,23.393,23.381,40.15244296]
[1674244900493,17.11371,23.393,23.382,47.96]
[1674244900919,17.11371,23.393,23.383,23.15244296]
[1674244901119,17.11371,23.393,23.384,20.0]
[1674244901336,17.11371,23.393,23.383,10.0]
[1674244901543,17.11371,23.393,23.384,20.0]
[1674244901751,17.11371,23.393,23.38,25.01]
[1674244901985,17.11371,23.393,23.375,23.15244296]
[1674244902381,10.0,23.4,23.376,10.0]
[1674244902594,32.06,23.399,23.376,10.0]
[1674244902802,16.96,23.398,23.376,10.0]
[1674244903032,16.96,23.398,23.375,23.15244296]
[1674244903033,32.06,23.397,23.375,23.15244296]
[1674244903349,10.0,23.396,23.372,23.15244296]
[1674244903566,32.07,23.395,23.373,20.0]
[1674244903746,32.07,23.395,23.362,20.0]
[1674244903962,32.07,23.395,23.362,43.15244296]
[1674244904174,32.07,23.395,23.363,23.15244296]
[1674244904402,10.0,23.394,23.363,55.26244296]
[1674244904713,32.07,23.393,23.364,20.0]
[1674244905241,4.20366,23.393,23.365,55.26244296]
[1674244905450,36.27366,23.393,23.366,20.0]
[1674244905765,36.27366,23.393,23.366,23.15244296]
[1674244906504,10.0,23.391,23.366,23.15244296]
[1674244906717,49.07,23.39,23.361,10.0]
[1674244906902,10.0,23.389,23.363,10.0]
[1674244907107,32.07,23.388,23.363,10.0]
[1674244907320,10.0,23.389,23.363,10.0]
[1674244907321,10.0,23.389,23.365,10.0]
[1674244907544,10.0,23.389,23.364,23.15244296]
[1674244907780,10.0,23.389,23.361,10.0]
[1674244907970,32.07,23.388,23.361,23.15244296]
[1674244908386,32.07,23.388,23.35,25.01]
[1674244908387,10.0,23.386,23.35,25.01]
[1674244908606,49.08,23.385,23.351,4.18791]
[1674244909234,108.6411,23.384,23.351,4.18791]
[1674244909445,60.04,23.383,23.351,4.18791]
[1674244909654,169.75624387,23.383,23.351,4.18791]
[1674244909966,42.08,23.383,23.36,25.01]
[1674244910162,32.08,23.385,23.36,25.01]
[1674244910379,10.0,23.386,23.361,33.15244296]
[1674244910583,10.0,23.386,23.361,23.15244296]
[1674244910912,10.0,23.386,23.36,25.01]
[1674244910913,10.0,23.386,23.36,24.95]
[1674244911126,10.0,23.386,23.362,23.15244296]
[1674244911342,32.08,23.385,23.363,10.0]
[1674244911527,32.07,23.388,23.37,25.01]
[1674244911739,32.07,23.393,23.37,25.01]
[1674244911955,32.07,23.395,23.371,40.15244296]
[1674244912160,222.5545,23.397,23.372,20.0]
[1674244912372,232.5545,23.397,23.372,43.15244296]
[1674244912594,42.06,23.396,23.373,23.15244296]
[1674244912810,42.06,23.396,23.374,20.0]
[1674244913121,120.0,23.409,23.38,124.99]
[1674244913312,24.99,23.44,23.39,25.01]
[1674244913313,120.0,23.416,23.39,25.01]
[1674244913523,32.04,23.415,23.39,25.01]
[1674244913734,32.04,23.415,23.391,23.15244296]
[1674244914050,120.0,23.416,23.39,25.01]
[1674244914375,10.0,23.414,23.38,25.22]
[1674244914577,32.04,23.413,23.38,25.22]
[1674244914791,32.04,23.413,23.376,46.30488592]
[1674244914997,32.04,23.413,23.38,48.16244296]
[1674244915209,30.0,23.412,23.381,10.0]
[1674244915427,49.04,23.411,23.373,23.15244296]
[1674244915647,49.04,23.411,23.374,20.0]
[1674244915834,49.04,23.411,23.38,24.81]
[1674244916041,20.0,23.41,23.38,24.81]
[1674244916275,10.0,23.408,23.374,20.0]
[1674244916467,0.96,23.407,23.374,20.0]
[1674244916681,32.05,23.406,23.375,27.79]
[1674244916891,32.05,23.406,23.38,25.01]
[1674244917103,128.104,23.408,23.381,26.27]
[1674244917307,32.05,23.407,23.38,25.01]
[1674244917518,128.104,23.408,23.38,25.01]
[1674244917723,32.05,23.407,23.38,25.01]
[1674244918162,4.20366,23.406,23.374,20.0]
[1674244918363,32.05,23.405,23.372,19.73855]
[1674244918574,145.2108,23.405,23.372,19.73855]
[1674244919105,145.2108,23.405,23.36,24.95]
[1674244919318,4.30118908,23.403,23.361,10.0]
[1674244919531,120.0,23.385,23.361,10.0]
[1674244919845,33.04,23.384,23.361,10.0]
[1674244920043,17.0,23.383,23.36,24.95]
[1674244920368,10.0,23.382,23.35,25.01]
[1674244920566,49.08,23.381,23.35,25.01]
[1674244920768,32.08,23.381,23.36,25.01]
[1674244921195,17.96,23.38,23.361,10.0]
[1674244921406,4.20366,23.379,23.35,24.95]
[1674244921620,17.0,23.378,23.36,25.01]
[1674244921935,32.08,23.381,23.36,25.01]
[1674244922268,10.0,23.379,23.361,10.0]
[1674244922474,0.96,23.378,23.361,10.0]
[1674244922811,32.08,23.381,23.361,10.0]
[1674244922993,32.06,23.396,23.37,24.99]
[1674244923208,9.5,23.395,23.371,10.0]
[1674244923419,9.5,23.395,23.38,25.01]
[1674244923651,9.5,23.395,23.372,22.58342714]
[1674244923849,112.5008,23.402,23.38,47.53342714]
[1674244924172,32.05,23.403,23.38,47.53342714]
[1674244924173,10.0,23.407,23.382,10.0]
[1674244924363,10.0,23.407,23.39,24.87]
[1674244924793,10.0,23.407,23.383,22.58342714]
[1674244925011,10.0,23.407,23.39,25.01]
[1674244925325,9.5,23.407,23.39,25.01]
[1674244925956,9.5,23.407,23.382,10.0]
[1674244926146,9.5,23.407,23.384,10.0]
[1674244926366,10.0,23.408,23.384,10.0]
[1674244926565,10.0,23.408,23.385,20.0]
[1674244926987,9.0,23.408,23.385,20.0]
[1674244927222,9.0,23.408,23.386,10.0]
[1674244927408,9.0,23.408,23.387,20.0]
[1674244927834,32.05,23.407,23.387,20.0]
[1674244928035,32.05,23.407,23.382,10.0]
[1674244928036,10.0,23.406,23.382,10.0]
[1674244928246,10.0,23.406,23.383,20.0]
[1674244928481,10.0,23.406,23.383,66.0418325]
[1674244928668,10.0,23.406,23.38,24.95]
[1674244928669,49.05,23.405,23.38,24.95]
[1674244928994,49.05,23.405,23.381,10.0]
[1674244929213,10.0,23.404,23.381,10.0]
[1674244929627,17.96,23.403,23.381,10.0]
[1674244929946,16.96,23.403,23.381,10.0]
[1674244930159,10.0,23.402,23.382,20.0]
[1674244930355,10.0,23.402,23.38,34.95]
[1674244930568,33.02,23.401,23.38,34.95]
[1674244930893,10.0,23.4,23.376,41.4318765]
[1674244931100,32.06,23.399,23.381,10.0]
[1674244931502,17.105464,23.402,23.39,24.95]
[1674244932052,17.105464,23.402,23.391,10.0]
[1674244932263,17.105464,23.402,23.39,24.95]
[1674244932458,17.105464,23.402,23.383,21.14]
[1674244932669,17.105464,23.402,23.384,20.0]
[1674244932895,16.105464,23.402,23.384,20.0]
[1674244933093,16.105464,23.402,23.385,10.0]
[1674244933309,16.105464,23.402,23.386,20.0]
[1674244933514,16.105464,23.402,23.39,25.01]
[1674244933737,16.105464,23.402,23.391,20.0]
[1674244933950,16.105464,23.402,23.392,10.0]
[1674244934158,16.105464,23.402,23.393,20.0]
[1674244934700,15.605464,23.402,23.393,20.0]
[1674244934903,15.605464,23.402,23.391,20.0]
[1674244935103,15.605464,23.402,23.392,10.0]
[1674244935317,15.605464,23.402,23.393,20.0]
[1674244935522,15.605464,23.402,23.393,42.58342714]
[1674244935739,15.605464,23.402,23.392,83.9293479]
[1674244936048,15.605464,23.402,23.39,25.01]
[1674244936264,15.605464,23.402,23.385,32.58342714]
[1674244936467,32.06,23.401,23.37,25.01]
[1674244936788,32.06,23.401,23.379,22.58342714]
[1674244937000,17.96,23.4,23.371,4.18433]
[1674244937212,42.06,23.399,23.371,4.18433]
[1674244937404,17.0,23.398,23.374,22.58342714]
[1674244937618,17.0,23.398,23.375,4.18361]
[1674244937619,32.06,23.397,23.375,4.18361]
[1674244937844,17.0,23.396,23.375,4.18361]
[1674244938055,42.07,23.395,23.375,4.18361]
[1674244938265,17.0,23.394,23.371,10.0]
[1674244938465,33.03,23.393,23.372,4.18415]
[1674244938793,33.03,23.393,23.371,10.0]
[1674244938794,32.07,23.393,23.371,10.0]
[1674244939105,117.006,23.401,23.381,10.0]
[1674244939311,149.066,23.401,23.38,24.81]
[1674244939525,149.066,23.401,23.371,10.0]
[1674244939722,10.0,23.4,23.371,10.0]
[1674244939931,32.06,23.399,23.381,10.0]
[1674244940138,32.06,23.4,23.381,10.0]
[1674244940364,117.006,23.401,23.381,32.52173912]
[1674244940688,117.006,23.401,23.382,20.0]
[1674244940893,149.066,23.401,23.383,10.0]
[1674244941101,117.006,23.401,23.384,20.0]
[1674244941307,32.05,23.406,23.384,20.0]
[1674244942054,10.0,23.41,23.384,20.0]
[1674244942055,32.04,23.41,23.39,25.01]
[1674244942259,119.3105,23.411,23.391,30.0]
[1674244942469,32.04,23.414,23.391,77.10722634]
[1674244942664,27.094408,23.415,23.391,77.10722634]
[1674244942665,27.094408,23.415,23.4,24.87]
[1674244942876,17.094408,23.415,23.4,24.87]
[1674244943087,17.094408,23.415,23.401,22.46462118]
[1674244943413,17.094408,23.415,23.401,10.0]
[1674244943626,17.094408,23.415,23.402,20.0]
[1674244943821,17.094408,23.415,23.401,10.0]
[1674244944557,32.04,23.414,23.401,10.0]
[1674244944769,17.094408,23.415,23.401,10.0]
[1674244944989,32.04,23.414,23.401,10.0]
[1674244945196,42.04,23.414,23.393,10.0]
[1674244945431,42.04,23.414,23.394,20.0]
[1674244945630,0.96,23.413,23.394,20.0]
[1674244945835,0.96,23.413,23.393,10.0]
[1674244946066,32.04,23.412,23.393,10.0]
[1674244946287,17.0,23.411,23.393,10.0]
[1674244946467,32.04,23.41,23.393,10.0]
[1674244946892,17.0,23.413,23.391,10.0]
[1674244946893,17.0,23.409,23.391,10.0]
[1674244947212,163.55,23.408,23.382,10.0]
[1674244947415,131.5,23.406,23.382,10.0]
[1674244947626,131.5,23.404,23.382,10.0]
[1674244947846,131.5,23.402,23.382,10.0]
[1674244948060,180.56,23.401,23.37,25.01]
[1674244948783,49.06,23.401,23.37,25.01]
[1674244949200,59.06,23.401,23.37,25.01]
[1674244949739,131.5,23.4,23.367,10.0]
[1674244949954,131.5,23.398,23.367,10.0]
[1674244950162,131.5,23.396,23.367,10.0]
[1674244950361,131.5,23.394,23.367,10.0]
[1674244950569,181.53,23.393,23.36,24.99]
[1674244950803,50.03,23.393,23.36,24.99]
[1674244950989,181.53,23.393,23.36,24.99]
[1674244951198,49.07,23.393,23.36,24.99]
[1674244951524,10.0,23.392,23.361,10.0]
[1674244951722,32.07,23.391,23.361,10.0]
[1674244952145,10.0,23.39,23.36,24.99]
[1674244952360,32.07,23.389,23.36,24.99]
[1674244953004,10.0,23.388,23.361,10.0]
[1674244953197,32.08,23.387,23.361,10.0]
[1674244953726,10.96,23.386,23.363,10.0]
[1674244954058,32.08,23.385,23.363,10.0]
[1674244954267,32.08,23.385,23.364,20.0]
[1674244954877,10.0,23.384,23.36,24.99]
[1674244955113,10.0,23.384,23.331,27.4547]
[1674244955114,32.08,23.383,23.357,22.46462118]
[1674244955635,17.0,23.382,23.357,22.46462118]
[1674244955817,42.08,23.381,23.358,10.0]
[1674244956023,17.0,23.38,23.358,10.0]
[1674244956239,33.05,23.379,23.358,10.0]
[1674244956468,10.0,23.377,23.358,10.0]
[1674244956674,32.09,23.376,23.357,22.46462118]
[1674244956889,27.0,23.375,23.357,22.46462118]
[1674244957096,32.09,23.374,23.35,25.01]
[1674244957310,32.09,23.374,23.344,10.0]
[1674244957311,17.0,23.373,23.344,10.0]
[1674244957499,32.1,23.372,23.344,10.0]
[1674244957706,17.0,23.371,23.344,10.0]
[1674244957925,42.1,23.37,23.344,10.0]
[1674244958145,21.20366,23.369,23.33,24.87]
[1674244958363,32.1,23.368,23.33,24.87]
[1674244958687,17.0,23.367,23.33,24.99]
[1674244958881,36.30366,23.366,23.33,24.99]
[1674244959097,17.0,23.365,23.331,10.0]
[1674244959306,32.11,23.364,23.34,25.01]
[1674244959518,17.96,23.363,23.34,25.01]
[1674244959723,32.11,23.362,23.341,22.4337996]
[1674244960051,32.11,23.362,23.35,25.01]
[1674244960250,32.11,23.363,23.341,32.4337996]
[1674244960674,117.2601,23.364,23.342,22.4337996]
[1674244960884,117.2601,23.364,23.35,25.01]
[1674244961097,32.11,23.365,23.35,25.01]
[1674244961295,10.0,23.364,23.343,10.0]
[1674244961511,10.0,23.364,23.342,22.4337996]
[1674244961720,32.11,23.363,23.341,10.0]
[1674244962154,0.96,23.362,23.341,10.0]
[1674244962471,32.11,23.363,23.341,10.0]
[1674244962779,10.0,23.362,23.342,22.4337996]
[1674244963723,10.0,23.362,23.343,10.0]
[1674244964153,17.96,23.361,23.343,32.41771026]
[1674244964465,50.07,23.361,23.343,22.41771026]